fUST/lending_fUST_20251203
["ID","MTS","AMOUNT","RATE_DAILY","PERIOD"]
[395749740,1764720643885,-500.0,0.00012403,2]
[395749742,1764720643895,-949.81,0.00012403,2]
[395749744,1764720643904,-1519.14,0.00012403,2]
[395749746,1764720643914,-500.0,0.00012403,2]
[395749748,1764720643923,-764.98,0.00012403,2]
[395749750,1764720643932,-500.0,0.00012403,2]
[395749752,1764720643941,-500.0,0.00012403,2]
[395749754,1764720643951,-500.0,0.00012403,2]
[395749756,1764720643960,-500.0,0.00012403,2]
[395749758,1764720643970,-500.0,0.00012403,2]
[395749760,1764720643981,-1092.43,0.00012403,2]
[395749762,1764720643990,-1824.48,0.00012403,2]
[395749764,1764720644000,-1213.28,0.00012403,2]
[395749766,1764720644010,-500.0,0.00012403,2]
[395749768,1764720644019,-500.0,0.00012403,2]
[395749770,1764720644029,-500.0,0.00012403,2]
[395749772,1764720644038,-500.0,0.00012403,2]
[395749774,1764720644047,-500.0,0.00012403,2]
[395749776,1764720644056,-618.67,0.00012403,2]
[395749778,1764720644066,-6005.35,0.00012403,2]
[395749780,1764720644075,-500.0,0.00012403,2]
[395749782,1764720644084,-500.0,0.00012403,2]
[395749784,1764720644094,-1853.96,0.00012403,2]
[395749786,1764720644103,-500.0,0.00012403,2]
[395749788,1764720644112,-688.41,0.00012403,2]
[395749790,1764720644121,-791.57,0.00012403,2]
[395749792,1764720644131,-500.0,0.00012403,2]
[395749794,1764720644140,-500.0,0.00012403,2]
[395749796,1764720644150,-151.0,0.00012403,2]
[395749798,1764720644159,-151.0,0.00012403,2]
[395749800,1764720644168,-151.0,0.00012403,2]
[395749802,1764720644178,-500.0,0.00012403,2]
[395749804,1764720644187,-151.0,0.00012403,2]
[395749806,1764720644197,-736.93,0.00012403,2]
[395749807,1764720644206,-151.0,0.00012403,2]
[395749808,1764720644215,-151.0,0.00012403,2]
[395749809,1764720644225,-151.0,0.00012403,2]
[395749810,1764720644235,-151.0,0.00012403,2]
[395749811,1764720644245,-151.0,0.00012403,2]
[395749812,1764720644254,-500.0,0.00012403,2]
[395749813,1764720644263,-169.546341,0.00012403,2]
[395749814,1764720644272,-2423.99,0.00012403,2]
[395749815,1764720644282,-500.0,0.00012403,2]
[395749816,1764720644291,-515.47,0.00012403,2]
[395749817,1764720644301,-500.0,0.00012403,2]
[395749818,1764720644311,-1556.52,0.00012403,2]
[395749819,1764720644320,-500.0,0.00012403,2]
[395749820,1764720644329,-575.0,0.00012403,2]
[395749821,1764720644339,-738.16,0.00012403,2]
[395749822,1764720644348,-500.0,0.00012403,2]
[395749823,1764720644358,-500.0,0.00012403,2]
[395749824,1764720644367,-832.08,0.00012403,2]
[395749825,1764720644376,-500.0,0.00012403,2]
[395749826,1764720644386,-2055.24,0.00012403,2]
[395749827,1764720644400,-765.51,0.00012403,2]
[395749828,1764720644409,-500.0,0.00012403,2]
[395749829,1764720644419,-500.0,0.00012403,2]
[395749831,1764720644428,-500.0,0.00012403,2]
[395749833,1764720644438,-605.83,0.00012403,2]
[395749835,1764720644447,-500.0,0.00012403,2]
[395749837,1764720644456,-500.0,0.00012403,2]
[395749839,1764720644466,-500.0,0.00012403,2]
[395749841,1764720644480,-500.0,0.00012403,2]
[395749843,1764720644490,-985.24,0.00012403,2]
[395749845,1764720644499,-2311.81,0.00012403,2]
[395749847,1764720644508,-636.47,0.00012403,2]
[395749849,1764720644518,-500.0,0.00012403,2]
[395749851,1764720644527,-500.0,0.00012403,2]
[395749853,1764720644536,-594.21,0.00012403,2]
[395749855,1764720644545,-306.073723,0.00012403,2]
[395749857,1764720644555,-306.073723,0.00012403,2]
[395749859,1764720644564,-306.073723,0.00012403,2]
[395749861,1764720644573,-306.073723,0.00012403,2]
[395749862,1764720644583,-306.073723,0.00012403,2]
[395749864,1764720644593,-306.073723,0.00012403,2]
[395749867,1764720644603,-306.073723,0.00012403,2]
[395749868,1764720644612,-151.0,0.00012403,2]
[395749870,1764720644622,-306.073723,0.00012403,2]
[395749873,1764720644631,-2016.21,0.00012403,2]
[395749875,1764720644641,-306.073723,0.00012403,2]
[395749876,1764720644650,-151.0,0.00012403,2]
[395749878,1764720644660,-306.073723,0.00012403,2]
[395749880,1764720644670,-151.0,0.00012403,2]
[395749882,1764720644679,-1307.44,0.00012403,2]
[395749884,1764720644689,-151.0,0.00012403,2]
[395749886,1764720644698,-306.073723,0.00012403,2]
[395749888,1764720644707,-917.05,0.00012403,2]
[395749890,1764720644717,-151.0,0.00012403,2]
[395749892,1764720644726,-306.073723,0.00012403,2]
[395749894,1764720644736,-151.0,0.00012403,2]
[395749896,1764720644746,-306.073723,0.00012403,2]
[395749898,1764720644755,-151.0,0.00012403,2]
[395749900,1764720644764,-306.073723,0.00012403,2]
[395749902,1764720644774,-151.0,0.00012403,2]
[395749904,1764720644783,-306.073723,0.00012403,2]
[395749906,1764720644793,-151.0,0.00012403,2]
[395749909,1764720644803,-306.073723,0.00012403,2]
[395749911,1764720644813,-500.0,0.00012403,2]
[395749912,1764720644822,-306.073723,0.00012403,2]
[395749914,1764720644832,-306.073723,0.00012403,2]
[395749917,1764720644842,-861.2,0.00012403,2]
[395749919,1764720644852,-306.073723,0.00012403,2]
[395749920,1764720644862,-306.073728,0.00012403,2]
[395749922,1764720644871,-500.0,0.00012403,2]
[395749924,1764720644880,-500.0,0.00012403,2]
[395749926,1764720644889,-1514.01,0.00012403,2]
[395749928,1764720644899,-500.0,0.00012403,2]
[395749930,1764720644908,-500.0,0.00012403,2]
[395749932,1764720644917,-1061.28,0.00012403,2]
[395749934,1764720644927,-1176.4,0.00012403,2]
[395749936,1764720644936,-657.81,0.00012403,2]
[395749938,1764720644945,-500.0,0.00012403,2]
[395749940,1764720644954,-500.0,0.00012403,2]
[395749942,1764720644963,-500.0,0.00012403,2]
[395749944,1764720644972,-500.0,0.00012403,2]
[395749946,1764720644982,-500.0,0.00012403,2]
[395749948,1764720644991,-500.0,0.00012403,2]
[395749950,1764720645000,-529.33,0.00012403,2]
[395749952,1764720645010,-500.0,0.00012403,2]
[395749954,1764720645019,-500.0,0.00012403,2]
[395749956,1764720645029,-559.55,0.00012403,2]
[395749958,1764720645039,-500.0,0.00012403,2]
[395749960,1764720645049,-500.0,0.00012403,2]
[395749962,1764720645058,-500.0,0.00012403,2]
[395749964,1764720645068,-1267.53,0.00012403,2]
[395749966,1764720645078,-1952.3,0.00012403,2]
[395749968,1764720645087,-500.0,0.00012403,2]
[395749970,1764720645098,-729.98,0.00012403,2]
[395749972,1764720645107,-500.0,0.00012403,2]
[395749974,1764720645116,-500.0,0.00012403,2]
[395749976,1764720645126,-500.0,0.00012403,2]
[395749978,1764720645135,-500.0,0.00012403,2]
[395749980,1764720645144,-1457.04,0.00012403,2]
[395749982,1764720645153,-524.15634435,0.00012403,2]
[395749984,1764720645163,-500.0,0.00012403,2]
[395749986,1764720645172,-500.0,0.00012403,2]
[395749988,1764720645182,-500.0,0.00012403,2]
[395749990,1764720645191,-503.03802596,0.00012403,2]
[395749992,1764720645201,-500.0,0.00012403,2]
[395749994,1764720645211,-500.0,0.00012403,2]
[395749996,1764720645220,-532.24,0.00012403,2]
[395749998,1764720645230,-1022.34,0.00012403,2]
[395750000,1764720645240,-731.6,0.00012403,2]
[395750002,1764720645249,-500.0,0.00012403,2]
[395750004,1764720645259,-1418.03,0.00012403,2]
[395750006,1764720645268,-500.0,0.00012403,2]
[395750008,1764720645277,-1125.57,0.00012403,2]
[395750009,1764720645287,-500.0,0.00012403,2]
[395750012,1764720645299,-1058.04,0.00012403,2]
[395750013,1764720645309,-500.0,0.00012403,2]
[395750015,1764720645318,-500.0,0.00012403,2]
[395750018,1764720645328,-841.13,0.00012403,2]
[395750020,1764720645337,-6149.96,0.00012403,2]
[395750022,1764720645346,-500.0,0.00012403,2]
[395750023,1764720645356,-1697.03,0.00012403,2]
[395750025,1764720645365,-1113.29,0.00012403,2]
[395750027,1764720645375,-500.0,0.00012403,2]
[395750029,1764720645385,-500.0,0.00012403,2]
[395750032,1764720645396,-1005.89,0.00012403,2]
[395750033,1764720645407,-350.36229507,0.00012403,2]
[395750035,1764720645417,-1911.99,0.00012403,2]
[395750037,1764720645426,-612.66327797,0.00012403,2]
[395750039,1764720645435,-6933.66,0.00012403,2]
[395750041,1764720645445,-939.17,0.00012403,2]
[395750043,1764720645456,-500.0,0.00012403,2]
[395750046,1764720645467,-500.0,0.00012403,2]
[395750048,1764720645476,-500.0,0.00012403,2]
[395750050,1764720645485,-500.0,0.00012403,2]
[395750052,1764720645494,-1124.71,0.00012403,2]
[395750053,1764720645506,-500.0,0.00012403,2]
[395750056,1764720645515,-3614.16,0.00012403,2]
[395750058,1764720645524,-500.0,0.00012403,2]
[395750060,1764720645534,-1537.21,0.00012403,2]
[395750061,1764720645543,-500.0,0.00012403,2]
[395750064,1764720645553,-1139.09,0.00012403,2]
[395750066,1764720645563,-500.0,0.00012403,2]
[395750068,1764720645573,-751.51,0.00012403,2]
[395750069,1764720645583,-500.0,0.00012403,2]
[395750071,1764720645592,-1089.7,0.00012403,2]
[395750073,1764720645601,-618.3,0.00012403,2]
[395750075,1764720645611,-500.0,0.00012403,2]
[395750078,1764720645620,-10044.44,0.00012403,2]
[395750079,1764720645630,-500.0,0.00012403,2]
[395750081,1764720645640,-500.0,0.00012403,2]
[395750083,1764720645650,-633.2,0.00012403,2]
[395750085,1764720645659,-646.12,0.00012403,2]
[395750087,1764720645669,-623.17,0.00012403,2]
[395750089,1764720645679,-500.0,0.00012403,2]
[395750091,1764720645688,-1340.19,0.00012403,2]
[395750093,1764720645698,-1721.06,0.00012403,2]
[395750095,1764720645707,-500.0,0.00012403,2]
[395750097,1764720645717,-500.0,0.00012403,2]
[395750099,1764720645726,-1687.99,0.00012403,2]
[395750102,1764720645736,-500.0,0.00012403,2]
[395750104,1764720645746,-227.15770958,0.00012403,2]
[395750105,1764720645756,-633.36,0.00012403,2]
[395750107,1764720645765,-151.0,0.00012403,2]
[395750109,1764720645774,-151.0,0.00012403,2]
[395750111,1764720645784,-2133.42,0.00012403,2]
[395750114,1764720645795,-835.79,0.00012403,2]
[395750115,1764720645804,-562.42848919,0.00012403,2]
[395750118,1764720645813,-500.0,0.00012403,2]
[395750120,1764720645823,-1150.06,0.00012403,2]
[395750121,1764720645832,-500.0,0.00012403,2]
[395750123,1764720645842,-716.76,0.00012403,2]
[395750126,1764720645852,-500.0,0.00012403,2]
[395750128,1764720645862,-500.0,0.00012403,2]
[395750129,1764720645872,-513.58,0.00012403,2]
[395750131,1764720645883,-500.0,0.00012403,2]
[395750134,1764720645894,-3924.31,0.00012403,2]
[395750136,1764720645904,-500.0,0.00012403,2]
[395750137,1764720645915,-500.0,0.00012403,2]
[395750140,1764720645926,-151.0,0.00012403,2]
[395750142,1764720645935,-151.0,0.00012403,2]
[395750143,1764720645945,-151.0,0.00012403,2]
[395750145,1764720645954,-538.16,0.00012403,2]
[395750147,1764720645963,-500.0,0.00012403,2]
[395750149,1764720645972,-500.0,0.00012403,2]
[395750151,1764720645982,-500.0,0.00012403,2]
[395750153,1764720645992,-1330.31,0.00012403,2]
[395750155,1764720646001,-4449.25,0.00012403,2]
[395750157,1764720646011,-1578.01,0.00012403,2]
[395750159,1764720646020,-587.8,0.00012403,2]
[395750161,1764720646031,-271.23898045,0.00012403,2]
[395750163,1764720646039,-500.0,0.00012403,2]
[395750165,1764720646049,-1029.45,0.00012403,2]
[395750167,1764720646059,-500.0,0.00012403,2]
[395750169,1764720646068,-500.0,0.00012403,2]
[395750171,1764720646079,-5537.05,0.00012403,2]
[395750173,1764720646088,-1253.26,0.00012403,2]
[395750175,1764720646098,-500.0,0.00012403,2]
[395750177,1764720646107,-550.3,0.00012403,2]
[395750179,1764720646117,-500.0,0.00012403,2]
[395750181,1764720646126,-3748.47,0.00012403,2]
[395750183,1764720646136,-500.0,0.00012403,2]
[395750185,1764720646147,-500.0,0.00012403,2]
[395750187,1764720646156,-500.0,0.00012403,2]
[395750189,1764720646165,-922.74,0.00012403,2]
[395750191,1764720646175,-500.0,0.00012403,2]
[395750193,1764720646184,-1274.21,0.00012403,2]
[395750195,1764720646193,-2304.86,0.00012403,2]
[395750197,1764720646203,-4841.43,0.00012403,2]
[395750199,1764720646213,-500.0,0.00012403,2]
[395750201,1764720646222,-1648.98,0.00012403,2]
[395750203,1764720646231,-500.0,0.00012403,2]
[395750205,1764720646240,-547.39,0.00012403,2]
[395750207,1764720646249,-500.0,0.00012403,2]
[395750209,1764720646259,-500.0,0.00012403,2]
[395750211,1764720646269,-510.84010644,0.00012403,2]
[395750213,1764720646278,-1511.05,0.00012403,2]
[395750214,1764720646288,-820.17,0.00012403,2]
[395750216,1764720646297,-500.0,0.00012403,2]
[395750218,1764720646306,-500.0,0.00012403,2]
[395750220,1764720646316,-500.0,0.00012403,2]
[395750222,1764720646325,-1051.62,0.00012403,2]
[395750224,1764720646334,-500.0,0.00012403,2]
[395750226,1764720646342,-1151.41,0.00012403,2]
[395750228,1764720646351,-1897.89,0.00012403,2]
[395750230,1764720646361,-500.0,0.00012403,2]
[395750232,1764720646370,-584.09,0.00012403,2]
[395750234,1764720646379,-500.0,0.00012403,2]
[395750236,1764720646389,-2059.31,0.00012403,2]
[395750238,1764720646403,-500.0,0.00012403,2]
[395750240,1764720646412,-500.0,0.00012403,2]
[395750242,1764720646421,-500.0,0.00012403,2]
[395750244,1764720646430,-573.64,0.00012403,2]
[395750246,1764720646442,-500.0,0.00012403,2]
[395750248,1764720646451,-726.19,0.00012403,2]
[395750250,1764720646460,-500.0,0.00012403,2]
[395750252,1764720646471,-991.98,0.00012403,2]
[395750254,1764720646481,-500.0,0.00012403,2]
[395750256,1764720646490,-500.0,0.00012403,2]
[395750258,1764720646500,-500.0,0.00012403,2]
[395750260,1764720646509,-601.84515769,0.00012403,2]
[395750262,1764720646518,-656.47,0.00012403,2]
[395750264,1764720646528,-500.0,0.00012403,2]
[395750266,1764720646537,-1432.21,0.00012403,2]
[395750268,1764720646547,-500.0,0.00012403,2]
[395750270,1764720646556,-1523.26,0.00012403,2]
[395750272,1764720646565,-668.91,0.00012403,2]
[395750274,1764720646574,-5584.11,0.00012403,2]
[395750276,1764720646583,-1123.33,0.00012403,2]
[395750278,1764720646593,-500.0,0.00012403,2]
[395750280,1764720646602,-500.0,0.00012403,2]
[395750282,1764720646611,-500.0,0.00012403,2]
[395750284,1764720646621,-500.0,0.00012403,2]
[395750286,1764720646630,-500.0,0.00012403,2]
[395750288,1764720646640,-500.0,0.00012403,2]
[395750290,1764720646649,-541.35,0.00012403,2]
[395750292,1764720646659,-545.34,0.00012403,2]
[395750294,1764720646668,-500.0,0.00012403,2]
[395750296,1764720646677,-500.0,0.00012403,2]
[395750298,1764720646686,-1128.98,0.00012403,2]
[395750300,1764720646696,-500.0,0.00012403,2]
[395750302,1764720646707,-500.0,0.00012403,2]
[395750304,1764720646716,-577.61,0.00012403,2]
[395750306,1764720646726,-1348.79,0.00012403,2]
[395750308,1764720646735,-4500.02,0.00012403,2]
[395750309,1764720646744,-500.0,0.00012403,2]
[395750311,1764720646753,-500.0,0.00012403,2]
[395750313,1764720646762,-1530.49,0.00012403,2]
[395750314,1764720646771,-500.0,0.00012403,2]
[395750315,1764720646780,-500.0,0.00012403,2]
[395750316,1764720646790,-500.0,0.00012403,2]
[395750317,1764720646799,-500.0,0.00012403,2]
[395750318,1764720646809,-621.477364,0.00012403,2]
[395750319,1764720646818,-1174.79,0.00012403,2]
[395750320,1764720646827,-621.477364,0.00012403,2]
[395750322,1764720646837,-621.477364,0.00012403,2]
[395750324,1764720646846,-621.477364,0.00012403,2]
[395750326,1764720646856,-621.477364,0.00012403,2]
[395750328,1764720646865,-621.477364,0.00012403,2]
[395750330,1764720646875,-621.477364,0.00012403,2]
[395750332,1764720646884,-3422.84,0.00012403,2]
[395750334,1764720646894,-621.477364,0.00012403,2]
[395750336,1764720646903,-621.477364,0.00012403,2]
[395750338,1764720646914,-621.477364,0.00012403,2]
[395750340,1764720646924,-621.477364,0.00012403,2]
[395750342,1764720646933,-500.0,0.00012403,2]
[395750344,1764720646943,-500.0,0.00012403,2]
[395750346,1764720646952,-621.477364,0.00012403,2]
[395750348,1764720646961,-621.477364,0.00012403,2]
[395750350,1764720646970,-523.42942141,0.00012403,2]
[395750352,1764720646980,-621.477364,0.00012403,2]
[395750354,1764720646989,-621.477364,0.00012403,2]
[395750356,1764720646998,-618.670357,0.00012403,2]
[395750358,1764720647007,-621.477364,0.00012403,2]
[395750360,1764720647016,-500.0,0.00012403,2]
[395750362,1764720647026,-621.477364,0.00012403,2]
[395750364,1764720647035,-500.0,0.00012403,2]
[395750366,1764720647044,-621.477364,0.00012403,2]
[395750387,1764720647225,-621.477364,0.00012403,2]
[395750389,1764720647239,-621.477364,0.00012403,2]
[395750391,1764720647249,-500.0,0.00012403,2]
[395750393,1764720647259,-1282.84,0.00012403,2]
[395750395,1764720647268,-500.0,0.00012403,2]
[395750397,1764720647278,-500.0,0.00012404,2]
[395750399,1764720647287,-500.0,0.00012404,2]
[395750401,1764720647296,-500.0,0.00012404,2]
[395750403,1764720647306,-500.0,0.00012404,2]
[395750405,1764720647315,-151.0,0.00012404,2]
[395750407,1764720647325,-500.0,0.00012404,2]
[395750409,1764720647334,-500.0,0.00012404,2]
[395750411,1764720647344,-500.0,0.00012404,2]
[395750413,1764720647354,-500.0,0.00012404,2]
[395750416,1764720647363,-500.0,0.00012404,2]
[395750418,1764720647373,-500.0,0.00012404,2]
[395750419,1764720647382,-500.0,0.00012404,2]
[395750422,1764720647391,-500.0,0.00012404,2]
[395750423,1764720647405,-822.31,0.00012404,2]
[395750426,1764720647417,-594.8,0.00012404,2]
[395750427,1764720647426,-500.0,0.00012404,2]
[395750429,1764720647435,-819.12,0.00012404,2]
[395750431,1764720647444,-500.0,0.00012404,2]
[395750433,1764720647454,-500.0,0.00012404,2]
[395750436,1764720647464,-500.0,0.00012404,2]
[395750438,1764720647474,-500.0,0.00012404,2]
[395750440,1764720647483,-500.0,0.00012404,2]
[395750442,1764720647493,-621.85046835,0.00012404,2]
[395750444,1764720647502,-500.0,0.00012404,2]
[395750446,1764720647511,-500.0,0.00012404,2]
[395750448,1764720647521,-151.0,0.00012404,2]
[395750450,1764720647531,-151.0,0.00012404,2]
[395750452,1764720647541,-151.0,0.00012404,2]
[395750454,1764720647550,-151.0,0.00012404,2]
[395750456,1764720647560,-211.667936,0.00012404,2]
[395750458,1764720647569,-530.47,0.00012404,2]
[395750460,1764720647579,-500.0,0.00012404,2]
[395750462,1764720647588,-151.0,0.00012404,2]
[395750464,1764720647597,-743.15,0.00012404,2]
[395750466,1764720647607,-151.0,0.00012404,2]
[395750468,1764720647616,-151.0,0.00012404,2]
[395750470,1764720647625,-500.0,0.00012404,2]
[395750472,1764720647636,-151.0,0.00012404,2]
[395750474,1764720647645,-151.844056,0.00012404,2]
[395750476,1764720647654,-151.0,0.00012404,2]
[395750478,1764720647664,-151.0,0.00012404,2]
[395750480,1764720647673,-500.0,0.00012404,2]
[395750482,1764720647682,-151.0,0.00012404,2]
[395750484,1764720647691,-500.0,0.00012404,2]
[395750486,1764720647701,-500.0,0.00012404,2]
[395750488,1764720647710,-151.0,0.00012404,2]
[395750490,1764720647719,-151.0,0.00012404,2]
[395750492,1764720647728,-500.36235688,0.00012404,2]
[395750494,1764720647739,-151.0,0.00012404,2]
[395750496,1764720647748,-500.0,0.00012404,2]
[395750498,1764720647758,-500.0,0.00012404,2]
[395750500,1764720647768,-500.0,0.00012404,2]
[395750502,1764720647777,-500.0,0.00012404,2]
[395750504,1764720647787,-500.0,0.00012404,2]
[395750506,1764720647796,-500.0,0.00012404,2]
[395750508,1764720647806,-513.42322386,0.00012404,2]
[395750510,1764720647815,-750.81,0.00012404,2]
[395750512,1764720647825,-500.0,0.00012404,2]
[395750514,1764720647835,-500.0,0.00012404,2]
[395750516,1764720647844,-151.0,0.00012404,2]
[395750518,1764720647854,-151.0,0.00012404,2]
[395750520,1764720647864,-151.0,0.00012404,2]
[395750522,1764720647873,-151.0,0.00012404,2]
[395750524,1764720647882,-500.0,0.00012404,2]
[395750526,1764720647891,-500.0,0.00012404,2]
[395750528,1764720647900,-500.0,0.00012404,2]
[395750530,1764720647909,-655.86,0.00012404,2]
[395750532,1764720647919,-500.0,0.00012404,2]
[395750534,1764720647928,-500.0,0.00012404,2]
[395750536,1764720647937,-500.0,0.00012404,2]
[395750538,1764720647945,-500.0,0.00012404,2]
[395750540,1764720647955,-500.0,0.00012404,2]
[395750542,1764720647965,-500.0,0.00012404,2]
[395750544,1764720647974,-1663.68,0.00012404,2]
[395750546,1764720647983,-500.0,0.00012404,2]
[395750548,1764720647993,-721.65,0.00012404,2]
[395750550,1764720648002,-500.0,0.00012404,2]
[395750552,1764720648012,-522.69993544,0.00012404,2]
[395750554,1764720648021,-500.0,0.00012404,2]
[395750556,1764720648031,-698.39,0.00012404,2]
[395750558,1764720648040,-500.0,0.00012404,2]
[395750560,1764720648049,-500.0,0.00012404,2]
[395750562,1764720648059,-500.0,0.00012404,2]
[395750564,1764720648068,-500.0,0.00012404,2]
[395750566,1764720648078,-500.0,0.00012404,2]
[395750568,1764720648087,-506.93,0.00012404,2]
[395750570,1764720648097,-500.0,0.00012404,2]
[395750572,1764720648106,-500.0,0.00012404,2]
[395750574,1764720648115,-500.0,0.00012404,2]
[395750576,1764720648124,-503.28074393,0.00012404,2]
[395750578,1764720648134,-500.0,0.00012404,2]
[395750580,1764720648143,-680.98,0.00012404,2]
[395750582,1764720648153,-501.19680907,0.00012404,2]
[395750584,1764720648162,-500.0,0.00012404,2]
[395750586,1764720648172,-508.69,0.00012404,2]
[395750588,1764720648181,-151.0,0.00012404,2]
[395750590,1764720648190,-151.0,0.00012404,2]
[395750592,1764720648199,-151.0,0.00012404,2]
[395750594,1764720648208,-151.0,0.00012404,2]
[395750596,1764720648217,-500.0,0.00012404,2]
[395750598,1764720648227,-1252.73,0.00012404,2]
[395750600,1764720648237,-500.0,0.00012404,2]
[395750602,1764720648247,-576.90419654,0.00012404,2]
[395750604,1764720648256,-500.0,0.00012404,2]
[395750606,1764720648266,-500.0,0.00012404,2]
[395750608,1764720648275,-581.87,0.00012404,2]
[395750610,1764720648284,-500.0,0.00012404,2]
[395750612,1764720648293,-500.0,0.00012404,2]
[395750614,1764720648303,-1098.72,0.00012404,2]
[395750616,1764720648312,-503.06392178,0.00012404,2]
[395750618,1764720648321,-500.0,0.00012404,2]
[395750620,1764720648330,-500.0,0.00012404,2]
[395750622,1764720648340,-500.0,0.00012404,2]
[395750624,1764720648350,-500.0,0.00012404,2]
[395750626,1764720648359,-841.32,0.00012404,2]
[395750628,1764720648368,-500.0,0.00012404,2]
[395750630,1764720648378,-500.0,0.00012404,2]
[395750632,1764720648387,-500.0,0.00012404,2]
[395750634,1764720648398,-500.0,0.00012404,2]
[395750636,1764720648408,-500.0,0.00012404,2]
[395750638,1764720648417,-500.0,0.00012404,2]
[395750640,1764720648426,-500.0,0.00012404,2]
[395750642,1764720648437,-500.0,0.00012404,2]
[395750644,1764720648446,-500.0,0.00012404,2]
[395750646,1764720648456,-500.0,0.00012404,2]
[395750648,1764720648466,-547.69264445,0.00012404,2]
[395750650,1764720648476,-500.0,0.00012404,2]
[395750652,1764720648488,-500.0,0.00012404,2]
[395750654,1764720648497,-500.0,0.00012404,2]
[395750656,1764720648506,-500.0,0.00012404,2]
[395750658,1764720648516,-500.0,0.00012404,2]
[395750660,1764720648525,-500.0,0.00012404,2]
[395750662,1764720648534,-500.0,0.00012404,2]
[395750664,1764720648544,-531.9,0.00012404,2]
[395750666,1764720648553,-500.0,0.00012404,2]
[395750668,1764720648562,-500.0,0.00012404,2]
[395750670,1764720648572,-500.0,0.00012404,2]
[395750672,1764720648581,-500.0,0.00012404,2]
[395750674,1764720648591,-238.11709688,0.00012404,2]
[395750676,1764720648601,-500.0,0.00012404,2]
[395750678,1764720648610,-500.0,0.00012404,2]
[395750680,1764720648620,-500.0,0.00012404,2]
[395750682,1764720648629,-568.73,0.00012404,2]
[395750684,1764720648638,-500.0,0.00012404,2]
[395750686,1764720648648,-500.0,0.00012404,2]
[395750688,1764720648658,-500.0,0.00012404,2]
[395750690,1764720648667,-500.0,0.00012404,2]
[395750692,1764720648677,-500.0,0.00012404,2]
[395750694,1764720648686,-151.0,0.00012404,2]
[395750696,1764720648695,-603.19,0.00012404,2]
[395750698,1764720648704,-151.0,0.00012404,2]
[395750700,1764720648714,-500.0,0.00012404,2]
[395750702,1764720648724,-478.088634,0.00012404,2]
[395750704,1764720648733,-478.088634,0.00012404,2]
[395750706,1764720648743,-478.088634,0.00012404,2]
[395750708,1764720648752,-478.088634,0.00012404,2]
[395750710,1764720648761,-478.088634,0.00012404,2]
[395750712,1764720648771,-478.088634,0.00012404,2]
[395750714,1764720648781,-500.0,0.00012404,2]
[395750716,1764720648790,-478.088634,0.00012404,2]
[395750718,1764720648799,-478.088639,0.00012404,2]
[395750720,1764720648808,-500.0,0.00012404,2]
[395750722,1764720648818,-500.0,0.00012404,2]
[395750724,1764720648827,-500.0,0.00012404,2]